[Event "IV Estrellas 2022"]
[Site "La Palma"]
[Date "2022.08.08"]
[Round "4.3"]
[White "Hernandez Leon, Sergio"]
[Black "Pulvett Marin, Daniel Eduardo"]
[Result "0-1"]
[ECO "B47"]
[WhiteElo "2094"]
[BlackElo "2523"]
[Annotator "TA"]
[PlyCount "64"]
[EventDate "2022.08.06"]
[EventType "swiss"]
[EventCountry "ESP"]
[SourceTitle "playchess.com"]
[Source "ChessBase"]
[SourceQuality "1"]
[TimeControl "5400+30"]

{[%evp 24,64,43,47,45,41,45,48,41,39,32,0,9,0,0,-22,6,1,0,-18,0,0,4,-8,-10,-12,-19,-46,-49,-58,11,11,20,0,5,-73,-68,-78,-70,-2614,-1972,-1975,-1766]} 1. e4 {[%emt 1:31:00]} c5 {[%emt 1:31:00]} 2. Nf3 {[%emt 0:00:30]} e6 {[%emt 0:00:30]} 3. d4 {[%emt 0:00:30]} cxd4 {[%emt 0:00:30]} 4. Nxd4 {[%emt 0:00:30]} Nc6 {[%emt 0:00:30]} 5. Nc3 {[%emt 0:00:30]} Qc7 {[%emt 0:00:30]} 6. g3 {[%emt 0:00:30]} a6 {[%emt 0:00:30]} 7. Bg2 {[%emt 0:00:30]} Nf6 {[%emt 0:00:30]} 8. O-O {[%emt 0:00:30]} Nxd4 {[%emt 0:00:30]} 9. Qxd4 {[%emt 0:00:30]} Bc5 {[%emt 0:00:30]} 10. Bf4 {[%emt 0:00:30]} d6 {[%emt 0:00:30]} 11. Qd2 {[%emt 0:00:30]} h6 {[%emt 0:00:30]} 12. Rad1 {[%emt 0:00:30]} e5 {[%emt 0:00:30]} 13. Be3 {[%emt 0:00:30]} Bb4 {[%emt 0:00:30] [#] B47: Sicilian: Taimanov: 5 Nc3 Qc7 6 f4, 6 g3 and 6 Be2.} 14. Nb5 $1 {[%emt 0:00:30]} axb5 {[%emt 0:00:30]} 15. Qxb4 {[%emt 0:00:30]} Rxa2 {[%emt 0:00:30] White is slightly better.} 16. Qxb5+ {[%emt 0:00:30]} Bd7 {[%emt 0:00:30][%cal Bc8d7,Bd7c6,Bc6a4][%mdl 32] [#]} 17. Qb3 $146 {[%emt 0:00:30]} (17. Qb4 $5 {[%cal Re3b6]}) ({Predecessor:} 17. Qb4 Ra6 18. h3 O-O 19. Rd2 b5 20. Rfd1 Rfa8 21. Kh2 Ne8 {1-0 (38) Kurmangaliyeva,L (2322)-Gokcek,K (2089) Paracin 2021}) 17... Ra6 {[%emt 0:00:30]} 18. Ra1 {[%emt 0:00:30]} O-O {[%emt 0:00:30]} 19. h3 {[%emt 0:00:30]} Rfa8 {[%emt 0:00:30]} 20. Rxa6 {[%emt 0:00:30]} Rxa6 {[%emt 0:00:30]} 21. c3 {[%emt 0:00:30]} Bc6 {[%emt 0:00:30]} 22. Qc4 {[%emt 0:00:30]} Ra4 {[%emt 0:00:30]} 23. b4 {[%emt 0:00:30]} Qd7 {[%emt 0:00:30] [#] aiming for ...Bb5.} 24. Qd3 {[%emt 0:00:30]} Ra3 {[%emt 0:00:30] Threatens to win with ...Bb5.} 25. Rd1 {[%emt 0:00:30]} Ba4 $1 {[%emt 0:00:30]} 26. Rd2 {[%emt 0:00:30]} Qc6 {[%emt 0:00:30]} ({Better is} 26... Ne8 $1 $15) 27. Qxd6 $11 {[%emt 0:00:30]} Qxc3 {[%emt 0:00:30]} 28. Qe7 {[%emt 0:00:30]} ({But not} 28. Bc5 Kh7 $15) 28... Kh7 {[%emt 0:00:30]} 29. Rd6 {[%emt 0:00:30]} ({Avoid the trap} 29. Qxb7 $2 Qc1+ 30. Kh2 Ra1 $19) (29. Kh2 $11 {remains equal.} Ra1 30. g4) 29... Ra1+ {[%emt 0:00:30]} 30. Kh2 $1 {[%emt 0:00:30] Black must now prevent Rxf6.} Qe1 {[%emt 0:00:30][%csl Ga1][%cal Re1g1]} 31. g4 $2 {[%emt 0:00:30][%mdl 8192]} (31. h4 $15 Qxb4 32. f3) 31... Qg1+ $19 {[%emt 0:00:30]} 32. Kg3 {[%emt 0:00:30]} Nxe4+ $1 {[%emt 0:00:30] Weighted Error Value: White=0.44/Black=0.10 (very precise)} 0-1

[Event "IV Estrellas 2022"]
[Site "La Palma"]
[Date "2022.08.08"]
[Round "4.4"]
[White "Miranda Herrera, Miguel"]
[Black "Kurajica, Bojan"]
[Result "0-1"]
[ECO "B22"]
[WhiteElo "1904"]
[BlackElo "2525"]
[Annotator "TA"]
[PlyCount "104"]
[EventDate "2022.08.06"]
[EventType "swiss"]
[EventCountry "ESP"]
[SourceTitle "playchess.com"]
[Source "ChessBase"]
[SourceQuality "1"]
[TimeControl "5400+30"]

{[%evp 17,104,26,31,0,-2,-19,-4,-11,14,19,49,41,41,57,97,89,108,115,110,37,37,29,23,48,73,89,140,157,201,204,268,268,275,238,239,249,247,177,150,156,166,142,163,151,206,221,214,215,235,68,208,190,263,251,260,192,339,190,165,175,566,555,537,472,464,476,468,463,506,483,480,182,182,182,236,166,137,0,-8,-8,-8,-8,-8,-54,-54,-414,-410,-5608,-4727]} 1. e4 {[%emt 0:00:04]} c5 {[%emt 0:00:07]} 2. c3 {[%emt 0:00:04]} d5 {[%emt 0:00:34]} 3. exd5 {[%emt 0:00:07]} Qxd5 {[%emt 0:00:04]} 4. d4 {[%emt 0:00:06]} Nf6 {[%emt 0:00:13]} 5. Nf3 {[%emt 0:00:12]} e6 {[%emt 0:01:08]} 6. Na3 {[%emt 0:00:06]} cxd4 {[%emt 0:01:39]} 7. Nb5 {[%emt 0:00:28]} Na6 {[%emt 0:03:47]} 8. Qxd4 {[%emt 0:02:48]} Bc5 {[%emt 0:06:15]} 9. Qxd5 {[%emt 0:06:21]} Nxd5 {[%emt 0:00:17]} 10. b4 {[%emt 0:00:04] B22: Sicilian: 2 c3.} Be7 {[%emt 0:00:32]} 11. a3 {[%emt 0:00:04]} Bf6 {[%emt 0:13:10]} 12. Bd2 {[%emt 0:04:55] The position is equal.} Ke7 {[%emt 0:03:02] Prevents Nd6.} 13. Rc1 {[%emt 0:10:22]} Bd7 {[%emt 0:00:23] [#]} 14. Nbd4 $146 {[%emt 0:02:14][%cal Bb5d4,Bd4b3,Bb3a5][%mdl 32]} ({Predecessor:} 14. g4 g6 15. g5 Bg7 16. h4 Bc6 17. Nbd4 Bxd4 18. Nxd4 Ndxb4 19. Rh3 e5 20. cxb4 exd4 21. Bxa6 {1-0 (50) McLaren,L (2236)-Li,S (2007) Auckland 2016}) 14... e5 {[%emt 0:07:49]} 15. Nb3 {[%emt 0:08:02]} Rac8 {[%emt 0:15:00]} 16. c4 {[%emt 0:08:14]} Ba4 {[%emt 0:03:43]} 17. Na5 {[%emt 0:01:29]} (17. cxd5 Bxb3 18. Bxa6 Rxc1+ 19. Bxc1 Rc8 $17) 17... e4 {[%emt 0:04:59]} 18. Ng1 {[%emt 0:15:54]} (18. cxd5 $6 Rxc1+ 19. Bxc1 exf3 $11) (18. Nxb7 $6 exf3 19. cxd5 Rxc1+ 20. Bxc1 Rc8 $11) (18. Ng5 $1 $16 e3 19. fxe3 $1) 18... Ndc7 $14 {[%emt 0:08:48]} 19. Nxb7 {[%emt 0:19:28] Threatens to win with b5.} Rb8 $1 {[%emt 0:00:42]} 20. Na5 {[%emt 0:01:15]} Rbd8 {[%emt 0:00:43][%cal Od8d2] Hoping for ...Rxd2!} 21. Nh3 {[%emt 0:03:31]} Bb2 {[%emt 0:04:00]} (21... Ne6 $142) 22. Rb1 $1 $16 {[%emt 0:01:13]} (22. b5 $2 Bxc1 23. Nc6+ Kf6 24. Bc3+ Ke6 $19) 22... Bxa3 {[%emt 0:06:33][%cal Od8d2]} 23. b5 {[%emt 0:00:01]} Nc5 {[%emt 0:03:47]} 24. Nc6+ {[%emt 0:00:29]} Kd7 {[%emt 0:01:14]} 25. Nxd8 {[%emt 0:01:51]} Rxd8 {[%emt 0:00:07]} 26. Be2 {[%emt 0:01:37] And now Bc3 would win.} Kc8 {[%emt 0:03:26]} 27. Bc1 {[%emt 0:01:56]} Bxc1 {[%emt 0:01:56]} 28. Rxc1 {[%emt 0:00:03]} N7e6 {[%emt 0:00:19] Prevents Nf4.} 29. O-O {[%emt 0:01:28]} Kc7 {[%emt 0:01:31]} 30. Bd1 {[%emt 0:01:26] aiming for Bxa4.} Kb6 {[%emt 0:00:57]} (30... Bb3 $16 31. f3 e3) 31. Bxa4 $18 {[%emt 0:02:12]} Nxa4 {[%emt 0:00:02]} 32. Rfd1 {[%emt 0:00:53] Rxd8 is the strong threat.} Nd4 {[%emt 0:00:31]} 33. Nf4 $2 {[%emt 0:01:00]} (33. Ra1 $18) 33... Kc5 {[%emt 0:02:56]} ({Black should try} 33... Nb2 $14 34. Rd2 Nd3 35. Nxd3 Nb3 36. c5+ Kb7 37. c6+ Kc8) 34. Re1 {[%emt 0:00:02]} f5 {[%emt 0:00:31]} (34... Nb3 $142) 35. Ra1 {[%emt 0:01:03]} Nb2 {[%emt 0:01:13]} 36. Rxa7 {[%emt 0:01:44] Strongly threatening Rb1.} g5 {[%emt 0:00:06]} (36... Nd3 $142) 37. Rb1 {[%emt 0:02:25]} (37. Rxh7 gxf4 38. Rb1 (38. Rc7+ $2 Kb6 $19) 38... f3 $17) (37. Rc7+ $142 Kb6 38. Ne6 $1 {[%mdl 512]} (38. Rxh7 gxf4 39. c5+ Kxc5 $17) 38... Nxe6 39. Rc6+ Kb7 40. Rxe6) 37... gxf4 {[%emt 0:01:38]} 38. Rxb2 {[%emt 0:00:05][%mdl 4096] Endgame KRR-KRN} e3 $2 {[%emt 0:02:39]} (38... Ne2+ 39. Kf1 Nc1 40. Rc7+ Kb6 41. Rc6+ Kb7) 39. fxe3 {[%emt 0:01:31]} fxe3 {[%emt 0:00:03][%cal Od4c2]} 40. Rc7+ {[%emt 0:00:48]} Kb6 {[%emt 0:00:43]} 41. Re7 {[%emt 0:00:02]} f4 {[%emt 0:00:12]} 42. Kf1 {[%emt 0:01:19]} Ra8 {[%emt 0:00:20]} 43. Rb1 {[%emt 0:00:49] Prevents Ra1.} Ra2 {[%emt 0:00:20]} 44. Re4 $2 {[%emt 0:00:40]} (44. c5+ Kxc5 45. b6 (45. Rxh7 f3 $15) 45... Rf2+ 46. Kg1 Ne2+ 47. Kh1) 44... Rf2+ {[%emt 0:01:20] [#]} 45. Kg1 $1 {[%emt 0:01:08]} Rd2 {[%emt 0:01:07]} (45... Ne2+ $142 46. Kh1 Nc3 47. Re6+ Kc5) 46. Re1 {[%emt 0:00:58]} Nc2 {[%emt 0:00:39]} 47. Rb1 {[%emt 0:00:46]} (47. Rc1 $16) 47... e2 $11 {[%emt 0:00:18]} 48. Re6+ {[%emt 0:00:20]} Kb7 {[%emt 0:00:37]} 49. Re7+ {[%emt 0:00:26]} Kc8 {[%emt 0:00:27]} 50. Rxe2 {[%emt 0:00:53]} Rxe2 $15 {[%emt 0:00:04]} 51. g3 $2 {[%emt 0:00:26][%mdl 8192] [#]} ({White should play} 51. Rb2 $15) 51... f3 $1 $19 {[%emt 0:01:28] ( -> ...Ne3)} ({And not} 51... Ne3 52. gxf4 Kb7 53. Rb3 $17) 52. Rb3 {[%emt 0:00:02]} (52. Rf1 $142 Rg2+ 53. Kh1) 52... Ne3 {[%emt 0:00:33] Weighted Error Value: White=0.68/Black=0.29 (precise)} 0-1

[Event "IV Estrellas 2022"]
[Site "La Palma"]
[Date "2022.08.08"]
[Round "4.5"]
[White "Martinez Reyes, Pedro Ramon"]
[Black "Roeder, Matthias"]
[Result "1/2-1/2"]
[ECO "B90"]
[WhiteElo "2408"]
[BlackElo "2357"]
[Annotator "RC"]
[PlyCount "127"]
[EventDate "2022.08.06"]
[EventType "swiss"]
[EventCountry "ESP"]
[SourceTitle "playchess.com"]
[Source "ChessBase"]
[SourceQuality "1"]
[TimeControl "5400+30"]

1. e4 {[%emt 0:03:23]} c5 {[%emt 0:00:43]} 2. Nf3 {[%emt 0:00:06]} d6 {[%emt 0:00:53]} 3. d4 {[%emt 0:00:06]} cxd4 {[%emt 0:00:11]} 4. Nxd4 {[%emt 0:00:04]} Nf6 {[%emt 0:00:26]} 5. Nc3 {[%emt 0:00:04]} a6 {[%emt 0:00:10]} 6. Be3 {[%emt 0:00:13]} e5 {[%emt 0:00:26]} 7. Nb3 {[%emt 0:01:02]} Be6 {[%emt 0:01:21]} 8. f3 {[%emt 0:00:05]} h5 {[%emt 0:01:07]} 9. Qd2 {[%emt 0:00:20]} Nbd7 {[%emt 0:01:16]} 10. O-O-O {[%emt 0:00:21]} Rc8 {[%emt 0:01:10]} 11. Kb1 {[%emt 0:00:05]} Qc7 {[%emt 0:02:23]} 12. Rc1 {[%emt 0:00:02]} Nb6 {[%emt 0:02:24]} 13. h3 {[%emt 0:27:46]} h4 {[%emt 0:02:23]} 14. Qf2 {[%emt 0:07:33]} Nfd7 {[%emt 0:02:26]} 15. f4 {[%emt 0:20:17]} exf4 {[%emt 0:08:51]} 16. Bd4 {[%emt 0:00:01]} Nc4 {[%emt 0:19:11]} 17. Nd5 {[%emt 0:01:57]} Bxd5 {[%emt 0:01:10]} 18. exd5 {[%emt 0:00:01]} Nce5 {[%emt 0:00:15]} 19. Qxf4 {[%emt 0:02:56]} Be7 {[%emt 0:03:16]} 20. Bd3 {[%emt 0:00:36]} g6 {[%emt 0:03:54]} 21. Rhf1 {[%emt 0:04:23]} Qd8 {[%emt 0:04:31]} 22. Rce1 {[%emt 0:05:39]} O-O {[%emt 0:00:26]} 23. Be2 {[%emt 0:06:59]} Bg5 {[%emt 0:05:44]} 24. Qf2 {[%emt 0:00:09]} b5 {[%emt 0:03:37]} 25. Rd1 {[%emt 0:03:22]} Qc7 {[%emt 0:11:10]} 26. c3 {[%emt 0:01:10]} Rce8 {[%emt 0:03:51]} 27. Rfe1 {[%emt 0:02:12]} Qd8 {[%emt 0:06:40]} 28. Ka1 {[%emt 0:00:24]} f5 {[%emt 0:02:24]} 29. Ba7 {[%emt 0:00:01]} Nf6 {[%emt 0:00:09]} 30. Nd4 {[%emt 0:03:16]} Ne4 {[%emt 0:00:08]} 31. Qg1 {[%emt 0:00:12]} Qd7 {[%emt 0:00:01]} 32. Ne6 {[%emt 0:00:24]} Rxe6 {[%emt 0:00:04]} 33. dxe6 {[%emt 0:00:04]} Qxe6 {[%emt 0:00:01]} 34. Qb6 {[%emt 0:01:32]} Bd2 {[%emt 0:03:01]} 35. Rxd2 {[%emt 0:00:05]} Nxd2 {[%emt 0:00:06]} 36. Rd1 {[%emt 0:00:55]} Nec4 {[%emt 0:00:09]} 37. Qf2 {[%emt 0:01:02]} Qe4 {[%emt 0:02:17]} 38. Bxc4+ {[%emt 0:01:10]} Nxc4 {[%emt 0:00:05]} 39. Re1 {[%emt 0:00:21]} Qd3 {[%emt 0:01:09]} 40. Bd4 {[%emt 0:01:16]} Qd2 {[%emt 0:00:29]} 41. Qxd2 {[%emt 0:00:23]} Nxd2 {[%emt 0:00:02]} 42. Re7 {[%emt 0:00:56]} Rf7 {[%emt 0:00:09]} 43. Re8+ {[%emt 0:00:04]} Rf8 {[%emt 0:00:05]} 44. Re6 {[%emt 0:00:01]} Ne4 {[%emt 0:00:07]} 45. Rxg6+ {[%emt 0:00:45]} Kf7 {[%emt 0:00:07]} 46. Rg7+ {[%emt 0:00:06]} Ke6 {[%emt 0:00:04]} 47. Kb1 {[%emt 0:00:23]} Kd5 {[%emt 0:00:49]} 48. Kc2 {[%emt 0:00:37]} a5 {[%emt 0:00:49]} 49. Kd3 {[%emt 0:00:20]} a4 {[%emt 0:00:52]} 50. Ke3 {[%emt 0:04:18]} f4+ {[%emt 0:02:05]} 51. Kf3 {[%emt 0:01:12]} b4 {[%emt 0:00:41]} 52. Rb7 {[%emt 0:01:54]} bxc3 {[%emt 0:00:37]} 53. bxc3 {[%emt 0:00:05]} Nd2+ {[%emt 0:02:23]} 54. Kg4 {[%emt 0:00:40]} Rg8+ {[%emt 0:00:27]} 55. Rg7 {[%emt 0:01:37]} Rb8 {[%emt 0:00:15]} 56. Ra7 {[%emt 0:01:27]} Rg8+ {[%emt 0:00:13]} 57. Kxf4 {[%emt 0:00:20]} Rxg2 {[%emt 0:00:02]} 58. Ra5+ {[%emt 0:00:20]} Kc6 {[%emt 0:01:51]} 59. Rxa4 {[%emt 0:00:21]} Rg3 {[%emt 0:00:08]} 60. Ra6+ {[%emt 0:01:34]} Kd5 {[%emt 0:00:13]} 61. Ra5+ {[%emt 0:00:24]} Kc6 {[%emt 0:00:05]} 62. Ra6+ {[%emt 0:01:25]} Kd5 {[%emt 0:00:04]} 63. Ra5+ {[%emt 0:00:40]} Kc6 {[%emt 0:00:04]} 64. Ra6+ {[%emt 0:00:31]} 1/2-1/2

[Event "IV Estrellas 2022"]
[Site "La Palma"]
[Date "2022.08.08"]
[Round "4.6"]
[White "Geske, Julian"]
[Black "Perez Bolanos, Joel"]
[Result "1-0"]
[ECO "C63"]
[WhiteElo "2386"]
[BlackElo "2036"]
[Annotator "RC"]
[PlyCount "129"]
[EventDate "2022.08.06"]
[EventType "swiss"]
[EventCountry "ESP"]
[SourceTitle "playchess.com"]
[Source "ChessBase"]
[SourceQuality "1"]
[TimeControl "5400+30"]

1. e4 {[%emt 0:00:05]} e5 {[%emt 0:00:07]} 2. Nf3 {[%emt 0:00:13]} Nc6 {[%emt 0:00:08]} 3. Bb5 {[%emt 0:00:05]} f5 {[%emt 0:00:07]} 4. d3 {[%emt 0:00:27]} fxe4 {[%emt 0:00:46]} 5. dxe4 {[%emt 0:00:06]} Nf6 {[%emt 0:00:04]} 6. O-O {[%emt 0:00:50]} Bc5 {[%emt 0:00:04]} 7. Bxc6 {[%emt 0:01:19]} bxc6 {[%emt 0:00:10]} 8. Nxe5 {[%emt 0:00:12]} O-O {[%emt 0:00:07]} 9. Nc3 {[%emt 0:00:30]} d6 {[%emt 0:00:04]} 10. Na4 {[%emt 0:01:39]} Qe8 {[%emt 0:00:42]} 11. Nd3 {[%emt 0:05:59]} Bd4 {[%emt 0:02:35]} 12. c3 {[%emt 0:02:15]} Bb6 {[%emt 0:00:53]} 13. Nxb6 {[%emt 0:02:42]} axb6 {[%emt 0:00:11]} 14. f3 {[%emt 0:00:38]} Be6 {[%emt 0:00:05]} 15. Qc2 {[%emt 0:11:44]} Qf7 {[%emt 0:04:04]} 16. Bg5 {[%emt 0:06:25]} Bxa2 {[%emt 0:07:13]} 17. Bxf6 {[%emt 0:00:48]} Bb3 {[%emt 0:01:01]} 18. Qd2 {[%emt 0:01:05]} Qxf6 {[%emt 0:00:20]} 19. Nb4 {[%emt 0:00:28]} c5 {[%emt 0:05:06]} 20. Nd5 {[%emt 0:00:56]} Qf7 {[%emt 0:00:11]} 21. Qd3 {[%emt 0:02:04]} Bxd5 {[%emt 0:02:29]} 22. Qxd5 {[%emt 0:02:23]} Qxd5 {[%emt 0:01:55]} 23. exd5 {[%emt 0:00:07]} Rfe8 {[%emt 0:00:20]} 24. Kf2 {[%emt 0:00:29]} Kf7 {[%emt 0:00:14]} 25. f4 {[%emt 0:01:37]} Ke7 {[%emt 0:01:52]} 26. Rfe1+ {[%emt 0:04:59]} Kd7 {[%emt 0:01:14]} 27. Rxe8 {[%emt 0:01:03]} Rxe8 {[%emt 0:02:20]} 28. g4 {[%emt 0:03:12]} h5 {[%emt 0:06:33]} 29. g5 {[%emt 0:07:24]} b5 {[%emt 0:07:58]} 30. Kf3 {[%emt 0:06:33]} b4 {[%emt 0:02:20]} 31. cxb4 {[%emt 0:04:29]} cxb4 {[%emt 0:00:19]} 32. Ra4 {[%emt 0:00:54]} Re1 {[%emt 0:03:20]} 33. Rxb4 {[%emt 0:01:01]} Rf1+ {[%emt 0:00:45]} 34. Ke4 {[%emt 0:01:37]} g6 {[%emt 0:01:32]} 35. Rb8 {[%emt 0:05:47]} Re1+ {[%emt 0:01:51]} 36. Kf3 {[%emt 0:00:56]} Ke7 {[%emt 0:02:06]} 37. Rg8 {[%emt 0:02:57]} Kf7 {[%emt 0:00:33]} 38. Rc8 {[%emt 0:00:06]} Rc1 {[%emt 0:00:05]} 39. b4 {[%emt 0:04:50]} Rc4 {[%emt 0:02:31]} 40. b5 {[%emt 0:01:00]} Rc5 {[%emt 0:01:01]} 41. Ke4 {[%emt 0:00:17]} Rc4+ {[%emt 0:00:10]} 42. Ke3 {[%emt 0:00:43]} Rc3+ {[%emt 0:00:30]} 43. Kd4 {[%emt 0:00:12]} Rc5 {[%emt 0:00:53]} 44. b6 {[%emt 0:07:58]} cxb6 {[%emt 0:00:37]} 45. Rc6 {[%emt 0:00:01]} Ke7 {[%emt 0:03:20]} 46. Rxb6 {[%emt 0:00:22]} Rc7 {[%emt 0:00:05]} 47. Rb8 {[%emt 0:01:06]} Ra7 {[%emt 0:00:24]} 48. Rc8 {[%emt 0:01:16]} Rb7 {[%emt 0:02:20]} 49. Kc4 {[%emt 0:01:55]} Rb2 {[%emt 0:04:17]} 50. Rc7+ {[%emt 0:00:09]} Ke8 {[%emt 0:00:14]} 51. Rg7 {[%emt 0:00:12]} Rxh2 {[%emt 0:02:02]} 52. Rxg6 {[%emt 0:00:11]} Rf2 {[%emt 0:02:04]} 53. Re6+ {[%emt 0:02:40]} Kd7 {[%emt 0:00:25]} 54. Rf6 {[%emt 0:00:14]} h4 {[%emt 0:02:18]} 55. Kd3 {[%emt 0:00:28]} h3 {[%emt 0:01:13]} 56. Ke4 {[%emt 0:00:32]} h2 {[%emt 0:00:26]} 57. Rf7+ {[%emt 0:00:44]} Ke8 {[%emt 0:00:05]} 58. Rh7 {[%emt 0:00:04]} Kf8 {[%emt 0:00:03]} 59. Kf5 {[%emt 0:00:15]} Kg8 {[%emt 0:00:10]} 60. g6 {[%emt 0:00:25]} Kf8 {[%emt 0:00:06]} 61. Kg5 {[%emt 0:00:37]} Kg8 {[%emt 0:00:54]} 62. f5 {[%emt 0:00:17]} Rg2+ {[%emt 0:00:31]} 63. Kf6 {[%emt 0:00:07]} Re2 {[%emt 0:00:02]} 64. Rd7 {[%emt 0:02:08]} Re8 {[%emt 0:00:23]} 65. Rg7+ {[%emt 0:00:05]} 1-0

[Event "IV Estrellas 2022"]
[Site "La Palma"]
[Date "2022.08.08"]
[Round "4.7"]
[White "Del Rey, Diego"]
[Black "Pierrot, Facundo"]
[Result "1/2-1/2"]
[ECO "B01"]
[WhiteElo "2358"]
[BlackElo "2371"]
[Annotator "RC"]
[PlyCount "35"]
[EventDate "2022.08.06"]
[EventType "swiss"]
[EventCountry "ESP"]
[SourceTitle "playchess.com"]
[Source "ChessBase"]
[SourceQuality "1"]
[TimeControl "5400+30"]

1. e4 {[%emt 0:00:04]} d5 {[%emt 0:00:18]} 2. exd5 {[%emt 0:00:13]} Qxd5 {[%emt 0:00:13]} 3. Nc3 {[%emt 0:00:11]} Qd8 {[%emt 0:00:37]} 4. d4 {[%emt 0:00:42]} Nf6 {[%emt 0:00:39]} 5. Nf3 {[%emt 0:01:26]} c6 {[%emt 0:01:08]} 6. Be2 {[%emt 0:00:33]} Bf5 {[%emt 0:01:39]} 7. O-O {[%emt 0:01:08]} e6 {[%emt 0:00:21]} 8. Ne5 {[%emt 0:01:01]} h6 {[%emt 0:02:07]} 9. Be3 {[%emt 0:03:08]} Nbd7 {[%emt 0:02:06]} 10. Nxd7 {[%emt 0:01:10]} Qxd7 {[%emt 0:00:23]} 11. Bd3 {[%emt 0:00:28]} Bxd3 {[%emt 0:01:22]} 12. Qxd3 {[%emt 0:00:17]} Be7 {[%emt 0:00:37]} 13. Rad1 {[%emt 0:00:40]} O-O {[%emt 0:00:16]} 14. Ne4 {[%emt 0:00:09]} Nxe4 {[%emt 0:00:48]} 15. Qxe4 {[%emt 0:00:06]} Qd5 {[%emt 0:02:59]} 16. Qxd5 {[%emt 0:01:37]} exd5 {[%emt 0:00:08]} 17. Rfe1 {[%emt 0:00:14]} Rfe8 {[%emt 0:00:20]} 18. f3 {[%emt 0:00:15]} 1/2-1/2

[Event "IV Estrellas 2022"]
[Site "La Palma"]
[Date "2022.08.08"]
[Round "4.8"]
[White "Pap, Misa"]
[Black "Cubas Cabrera, Angel Luis"]
[Result "1/2-1/2"]
[ECO "C65"]
[WhiteElo "2375"]
[BlackElo "2207"]
[Annotator "RC"]
[PlyCount "153"]
[EventDate "2022.08.06"]
[EventType "swiss"]
[EventCountry "ESP"]
[SourceTitle "playchess.com"]
[Source "ChessBase"]
[SourceQuality "1"]
[TimeControl "5400+30"]

1. e4 {[%emt 0:01:00]} e5 {[%emt 0:00:08]} 2. Nf3 {[%emt 0:00:08]} Nc6 {[%emt 0:00:06]} 3. Bb5 {[%emt 0:00:49]} Nf6 {[%emt 0:00:09]} 4. d3 {[%emt 0:00:25]} Bd6 {[%emt 0:00:14]} 5. c3 {[%emt 0:01:28]} O-O {[%emt 0:00:35]} 6. O-O {[%emt 0:00:20]} Re8 {[%emt 0:02:06]} 7. Nbd2 {[%emt 0:00:11]} a6 {[%emt 0:00:07]} 8. Ba4 {[%emt 0:00:10]} b5 {[%emt 0:00:06]} 9. Bc2 {[%emt 0:00:20]} Bf8 {[%emt 0:00:22]} 10. a4 {[%emt 0:01:37]} Bb7 {[%emt 0:01:02]} 11. Re1 {[%emt 0:00:53]} d5 {[%emt 0:02:26]} 12. exd5 {[%emt 0:00:51]} Nxd5 {[%emt 0:02:08]} 13. Ne4 {[%emt 0:01:14]} h6 {[%emt 0:06:27]} 14. Bd2 {[%emt 0:09:19]} Nb8 {[%emt 0:08:17]} 15. axb5 {[%emt 0:17:32]} axb5 {[%emt 0:00:08]} 16. Rxa8 {[%emt 0:00:06]} Bxa8 {[%emt 0:00:05]} 17. d4 {[%emt 0:15:51]} Nc6 {[%emt 0:16:44]} 18. Bb3 {[%emt 0:16:07]} Nb6 {[%emt 0:10:19]} 19. Qe2 {[%emt 0:09:37]} Na5 {[%emt 0:19:14]} 20. Bc2 {[%emt 0:00:43]} Nac4 {[%emt 0:05:42]} 21. Bc1 {[%emt 0:00:42]} exd4 {[%emt 0:03:50]} 22. Nf6+ {[%emt 0:07:04]} Qxf6 {[%emt 0:00:11]} 23. Qxe8 {[%emt 0:00:06]} Bxf3 {[%emt 0:04:12]} 24. gxf3 {[%emt 0:00:15]} dxc3 {[%emt 0:00:13]} 25. bxc3 {[%emt 0:03:38]} Qxc3 {[%emt 0:00:17]} 26. Qe4 {[%emt 0:01:30]} g6 {[%emt 0:00:19]} 27. Rd1 {[%emt 0:00:35]} Nd6 {[%emt 0:01:48]} 28. Qe2 {[%emt 0:00:48]} Nbc4 {[%emt 0:01:52]} 29. Bf4 {[%emt 0:01:22]} Qf6 {[%emt 0:04:31]} 30. Bg3 {[%emt 0:00:21]} h5 {[%emt 0:00:26]} 31. h4 {[%emt 0:00:54]} Qc3 {[%emt 0:04:59]} 32. Bd3 {[%emt 0:00:55]} b4 {[%emt 0:01:04]} 33. Bf4 {[%emt 0:02:25]} Qd4 {[%emt 0:01:34]} 34. Bg5 {[%emt 0:02:13]} Nb2 {[%emt 0:01:26]} 35. Rd2 {[%emt 0:00:20]} Nxd3 {[%emt 0:00:08]} 36. Rxd3 {[%emt 0:00:02]} Qc4 {[%emt 0:00:29]} 37. Bf6 {[%emt 0:00:46]} Qe6 {[%emt 0:01:23]} 38. Qe5 {[%emt 0:02:16]} Qxe5 {[%emt 0:00:29]} 39. Bxe5 {[%emt 0:00:01]} Be7 {[%emt 0:01:46]} 40. Rd4 {[%emt 0:00:20]} Nf5 {[%emt 0:00:18]} 41. Rd7 {[%emt 0:00:01]} c5 {[%emt 0:00:15]} 42. Rc7 {[%emt 0:00:51]} f6 {[%emt 0:00:09]} 43. Bf4 {[%emt 0:00:28]} Kf7 {[%emt 0:00:44]} 44. Be3 {[%emt 0:00:11]} Nxe3 {[%emt 0:01:44]} 45. fxe3 {[%emt 0:00:02]} Ke6 {[%emt 0:00:26]} 46. Kf2 {[%emt 0:00:00]} f5 {[%emt 0:01:09]} 47. Ke2 {[%emt 0:00:01]} Kd6 {[%emt 0:00:11]} 48. Rb7 {[%emt 0:00:01]} Bxh4 {[%emt 0:01:06]} 49. Kd3 {[%emt 0:00:01]} Ke6 {[%emt 0:00:43]} 50. Rg7 {[%emt 0:00:28]} Bf6 {[%emt 0:00:37]} 51. Rxg6 {[%emt 0:00:12]} b3 {[%emt 0:00:20]} 52. Kc4 {[%emt 0:02:57]} b2 {[%emt 0:00:03]} 53. Rg1 {[%emt 0:00:04]} Kd6 {[%emt 0:00:10]} 54. Rd1+ {[%emt 0:00:01]} Kc6 {[%emt 0:00:08]} 55. Kb3 {[%emt 0:00:12]} h4 {[%emt 0:01:15]} 56. Kc2 {[%emt 0:00:01]} c4 {[%emt 0:00:26]} 57. e4 {[%emt 0:02:13]} fxe4 {[%emt 0:00:47]} 58. fxe4 {[%emt 0:00:01]} c3 {[%emt 0:00:37]} 59. Rd5 {[%emt 0:00:33]} Be7 {[%emt 0:00:50]} 60. Rh5 {[%emt 0:01:08]} Kd6 {[%emt 0:00:19]} 61. Rf5 {[%emt 0:02:34]} Ke6 {[%emt 0:00:11]} 62. Kb1 {[%emt 0:00:38]} Bf6 {[%emt 0:00:06]} 63. Kc2 {[%emt 0:00:05]} Be5 {[%emt 0:00:09]} 64. Rh5 {[%emt 0:00:07]} Bf6 {[%emt 0:00:32]} 65. Rf5 {[%emt 0:00:02]} Be5 {[%emt 0:00:54]} 66. Rh5 {[%emt 0:00:01]} Bg3 {[%emt 0:00:17]} 67. Kb1 {[%emt 0:01:54]} Kf6 {[%emt 0:00:26]} 68. e5+ {[%emt 0:00:08]} Ke6 {[%emt 0:00:25]} 69. Kc2 {[%emt 0:00:03]} Kd5 {[%emt 0:00:23]} 70. Rg5 {[%emt 0:00:09]} Ke6 {[%emt 0:00:57]} 71. Rh5 {[%emt 0:00:01]} Bf2 {[%emt 0:00:48]} 72. Kb1 {[%emt 0:00:17]} Be1 {[%emt 0:00:51]} 73. Kc2 {[%emt 0:00:17]} Bg3 {[%emt 0:00:02]} 74. Kb1 {[%emt 0:00:15]} Kf7 {[%emt 0:00:28]} 75. Rg5 {[%emt 0:00:34]} Ke6 {[%emt 0:00:39]} 76. Rh5 {[%emt 0:00:09]} Kd5 {[%emt 0:00:08]} 77. Kc2 {[%emt 0:07:06]} 1/2-1/2